bitfinex-derivatives/quotes_BTCF0:USTF0_20241218
["timestamp","ask_amount","ask_price","bid_price","bid_amount"]
[1734508174439,0.84904167,104170.0,104160.0,0.01]
[1734508175243,0.89547934,104170.0,104160.0,0.01]
[1734508175448,0.048008,104160.0,104150.0,0.00010757]
[1734508175655,0.73465768,104160.0,104150.0,0.00010757]
[1734508176743,0.469708,104160.0,104150.0,0.09455824]
[1734508177146,0.58469671,104160.0,104150.0,0.09455824]
[1734508178549,0.67092054,104160.0,104150.0,0.09455824]
[1734508182955,0.62291254,104160.0,104150.0,0.09455824]
[1734508183253,0.50792383,104160.0,104150.0,0.09455824]
[1734508185568,0.55593183,104160.0,104150.0,0.09455824]
[1734508185758,0.67092054,104160.0,104150.0,0.09455824]
[1734508186059,0.55593183,104160.0,104150.0,0.09455824]
[1734508186759,0.67092054,104160.0,104150.0,0.09455824]
[1734508187253,0.55593183,104160.0,104150.0,0.09455824]
[1734508187850,0.67092054,104160.0,104150.0,0.09455824]
[1734508188457,0.62291254,104160.0,104150.0,0.09455824]
[1734508188664,0.50792383,104160.0,104150.0,0.09455824]
[1734508189363,0.62291254,104160.0,104150.0,0.09455824]
[1734508190154,0.67092054,104160.0,104150.0,0.09455824]
[1734508192062,0.55593183,104160.0,104150.0,0.09455824]
[1734508192254,0.67092054,104160.0,104150.0,0.09455824]
[1734508193065,0.67092054,104160.0,104150.0,0.04812057]
[1734508193273,0.67092054,104160.0,104150.0,0.09455824]
[1734508195458,0.58469671,104160.0,104150.0,0.09455824]
[1734508195968,0.58469671,104160.0,104150.0,0.04812057]
[1734508196169,0.58469671,104160.0,104150.0,0.09455824]
[1734508196873,0.63113438,104160.0,104150.0,0.00010757]
[1734508197057,0.82136145,104160.0,104150.0,0.00010757]
[1734508197259,0.048013,104150.0,104140.0,0.0005]
[1734508197570,0.048022,104130.0,104110.0,0.04803]
[1734508197790,0.47582597,104120.0,104110.0,0.09446767]
[1734508197973,0.61012734,104120.0,104100.0,0.24917639]
[1734508198174,0.3608,104110.0,104100.0,0.1907644]
[1734508198563,0.3608,104110.0,104100.0,0.20420207]
[1734508199259,0.3608,104110.0,104100.0,0.1577644]
[1734508199770,0.3608,104110.0,104100.0,0.20420207]
[1734508199970,0.3608,104110.0,104100.0,0.18217144]
[1734508200561,0.3608,104110.0,104100.0,0.11132673]
[1734508200869,0.408831,104110.0,104100.0,9.273e-05]
[1734508201066,0.441731,104110.0,104100.0,9.273e-05]
[1734508203959,0.441731,104110.0,104100.0,0.11897344]
[1734508204666,0.441731,104110.0,104100.0,0.11947344]
[1734508208568,0.441731,104110.0,104100.0,0.00059273]
[1734508210075,0.44182142,104110.0,104100.0,0.00059273]
[1734508210667,0.47362142,104110.0,104100.0,0.00059273]
[1734508217076,0.47362142,104110.0,104100.0,0.11947144]
[1734508218086,0.36089042,104110.0,104100.0,0.19031615]
[1734508218282,9.042e-05,104110.0,104100.0,0.61701615]
[1734508218581,9.042e-05,104110.0,104100.0,0.64911615]
[1734508218977,0.3608,104130.0,104100.0,0.94911615]
[1734508219178,0.3608,104130.0,104120.0,0.11886971]
[1734508219581,0.439419,104140.0,104130.0,0.04802]
[1734508219782,0.439419,104140.0,104130.0,0.11886471]
[1734508220079,0.40938848,104140.0,104130.0,0.11886471]
[1734508220285,0.36136948,104140.0,104130.0,0.11886471]
[1734508220677,6.948e-05,104140.0,104130.0,0.11886471]
[1734508220876,6.948e-05,104140.0,104130.0,0.18970942]
[1734508221088,6.948e-05,104140.0,104130.0,0.51156471]
[1734508221281,6.948e-05,104140.0,104130.0,0.58240942]
[1734508221581,0.00056948,104140.0,104130.0,0.58240942]
[1734508221980,0.00056948,104140.0,104130.0,0.51156471]
[1734508222677,6.948e-05,104140.0,104130.0,0.58240942]
[1734508222883,6.948e-05,104140.0,104130.0,0.51156471]
[1734508223687,0.00056948,104140.0,104130.0,0.58240942]
[1734508223986,0.00056948,104140.0,104130.0,0.51156471]
[1734508224388,0.00056948,104140.0,104130.0,0.15076471]
[1734508224586,6.948e-05,104140.0,104130.0,0.15076471]
[1734508224888,6.948e-05,104140.0,104130.0,0.51156471]
[1734508225083,6.948e-05,104140.0,104130.0,0.15076471]
[1734508225283,6.948e-05,104140.0,104130.0,0.51156471]
[1734508225490,0.04808648,104140.0,104130.0,0.15076471]
[1734508225688,0.04858648,104140.0,104130.0,0.15076471]
[1734508226691,0.04808648,104140.0,104130.0,0.15076471]
[1734508226894,0.04808648,104140.0,104130.0,0.07992]
[1734508227293,0.40888648,104140.0,104130.0,0.15076471]
[1734508227690,0.40938648,104140.0,104130.0,0.15076471]
[1734508228693,0.40888648,104140.0,104130.0,0.15076471]
[1734508229399,0.36086948,104140.0,104130.0,0.15076471]
[1734508229601,0.00056948,104140.0,104130.0,0.51156471]
[1734508230592,6.948e-05,104140.0,104130.0,0.51156471]
[1734508231609,0.00056948,104140.0,104130.0,0.51156471]
[1734508232302,0.00056948,104140.0,104130.0,0.58240942]
[1734508232602,6.948e-05,104140.0,104130.0,0.58240942]
[1734508233407,0.54187437,104170.0,104130.0,0.88240942]
[1734508233600,0.58988037,104170.0,104160.0,0.11885271]
[1734508234101,0.58988037,104170.0,104160.0,0.048008]
[1734508234608,0.58997533,104170.0,104160.0,0.048008]
[1734508237100,0.58997533,104170.0,104160.0,0.11885271]
[1734508237101,0.50370096,104170.0,104160.0,0.11885271]
[1734508239912,0.42249496,104170.0,104160.0,0.11885271]
[1734508240117,0.36089496,104170.0,104160.0,0.11885271]
[1734508240421,9.496e-05,104170.0,104160.0,0.11885271]
[1734508242305,9.496e-05,104170.0,104160.0,0.18969742]
[1734508242508,9.496e-05,104170.0,104160.0,0.22089742]
[1734508242710,9.496e-05,104170.0,104160.0,0.51085271]
[1734508242910,9.496e-05,104170.0,104160.0,0.58169742]
[1734508243715,9.496e-05,104170.0,104160.0,0.22089742]
[1734508243911,9.496e-05,104170.0,104160.0,0.58169742]
[1734508245426,0.62230034,104190.0,104170.0,0.048002]
[1734508245427,0.52527037,104190.0,104170.0,0.048002]
[1734508245617,0.16447037,104190.0,104180.0,0.11884371]
[1734508246621,0.08639389,104190.0,104180.0,0.11896096]
[1734508247121,0.08639389,104190.0,104180.0,0.47976096]
[1734508247426,0.00011952,104190.0,104180.0,0.51076096]
[1734508249731,0.00061952,104190.0,104180.0,0.51076096]
[1734508250130,0.08689389,104190.0,104180.0,0.51076096]
[1734508254027,0.13488789,104190.0,104180.0,0.51076096]
[1734508254737,0.08689389,104190.0,104180.0,0.51076096]
[1734508255941,0.13488789,104190.0,104180.0,0.51076096]
[1734508256329,0.08689389,104190.0,104180.0,0.51076096]
[1734508257128,0.08689389,104190.0,104180.0,0.14984096]
[1734508257543,0.13488789,104190.0,104180.0,0.14984096]
[1734508258541,0.24991386,104190.0,104180.0,0.14984096]
[1734508258944,0.13488789,104190.0,104180.0,0.11884096]
[1734508259140,0.61071386,104190.0,104180.0,0.11884096]
[1734508259346,0.61071386,104190.0,104180.0,0.04811625]
[1734508259347,0.68155857,104190.0,104180.0,0.04811625]
[1734508259638,0.73162196,104190.0,104180.0,0.00011725]
[1734508259843,0.73162196,104190.0,104180.0,0.11896096]
[1734508260041,0.58783949,104190.0,104180.0,0.11896096]
[1734508260847,0.47644549,104190.0,104180.0,0.11896096]
[1734508261237,0.11564549,104190.0,104180.0,0.11896096]
[1734508261640,0.11514549,104190.0,104180.0,0.11896096]
[1734508262742,0.25892796,104190.0,104180.0,0.11896096]
[1734508262947,0.11514549,104190.0,104180.0,0.11896096]
[1734508263144,0.25892796,104190.0,104180.0,0.11896096]
[1734508264045,0.66772196,104190.0,104180.0,0.04811625]
[1734508264347,0.55269599,104190.0,104180.0,0.04811625]
[1734508264546,0.55269599,104190.0,104180.0,0.00011725]
[1734508264739,0.72477033,104190.0,104180.0,0.00011725]
[1734508267255,0.55269599,104190.0,104180.0,0.00011725]
[1734508267434,0.72477033,104190.0,104180.0,0.00011725]
[1734508268342,0.65183257,104190.0,104180.0,0.00011725]
[1734508268846,0.58098786,104190.0,104180.0,0.00011725]
[1734508273143,0.22018786,104190.0,104180.0,0.00011725]
[1734508273345,0.89379386,104190.0,104180.0,0.04811625]
[1734508273549,0.89379386,104190.0,104180.0,0.11896096]
[1734508273550,1.15236629,104190.0,104180.0,0.11896096]
[1734508273752,0.98029195,104190.0,104180.0,0.04811625]
[1734508274048,0.61949195,104190.0,104180.0,0.04811625]
[1734508274644,0.11504416,104190.0,104180.0,0.04811625]
[1734508274843,0.47584416,104190.0,104180.0,0.04811625]
[1734508276452,0.47584416,104190.0,104180.0,0.11896096]
[1734508276651,0.20124365,104190.0,104180.0,0.11896096]
[1734508279256,0.08631901,104190.0,104180.0,0.11896096]
[1734508279560,0.20124365,104190.0,104180.0,0.11896096]
[1734508280655,0.61003765,104190.0,104180.0,0.11896096]
[1734508280855,0.52383816,104190.0,104180.0,0.11896096]
[1734508282464,0.5620585,104190.0,104180.0,0.11896096]
[1734508286059,0.6100525,104190.0,104180.0,0.11896096]
[1734508286463,0.52383816,104190.0,104180.0,0.11896096]
[1734508287058,0.61007762,104190.0,104180.0,0.11896096]
[1734508287265,0.52383816,104190.0,104180.0,0.11896096]
[1734508287568,0.61007932,104190.0,104180.0,0.11896096]
[1734508288061,0.52383816,104190.0,104180.0,0.11896096]
[1734508290556,0.52383816,104190.0,104180.0,0.04811625]
[1734508290760,0.66748595,104190.0,104180.0,0.00011725]
[1734508290956,0.69938595,104190.0,104180.0,0.00011725]
[1734508291457,0.69938595,104190.0,104180.0,0.07096196]
[1734508291855,0.55573816,104190.0,104180.0,0.07096196]
[1734508292063,0.69938595,104190.0,104180.0,0.11896096]
[1734508292267,0.55573816,104190.0,104180.0,0.11896096]
[1734508293460,0.52383816,104190.0,104180.0,0.11896096]
[1734508293656,0.61009012,104190.0,104180.0,0.11896096]
[1734508294162,0.52383816,104190.0,104180.0,0.11896096]
[1734508294365,0.61009063,104190.0,104180.0,0.11896096]
[1734508294776,0.61009013,104190.0,104180.0,0.11896096]
[1734508297767,0.52383816,104190.0,104180.0,0.11896096]
[1734508297962,0.52383816,104190.0,104180.0,0.14094931]
[1734508298571,0.20129497,104190.0,104180.0,0.18736584]
[1734508298770,0.08637033,104190.0,104180.0,0.28136884]
[1734508299071,0.08637033,104190.0,104180.0,0.32376884]
[1734508299263,0.08637033,104190.0,104180.0,0.27735231]
[1734508299463,0.08637033,104190.0,104180.0,0.63815231]
[1734508300070,0.08637033,104190.0,104180.0,0.61603173]
[1734508300886,0.00011952,104190.0,104180.0,0.68674421]
[1734508301071,0.08637033,104190.0,104180.0,0.68674421]
[1734508301668,0.08637033,104190.0,104180.0,0.61603173]
[1734508302576,0.08637033,104190.0,104180.0,0.52202873]
[1734508305476,0.21492464,104200.0,104180.0,0.64074021]
[1734508305672,0.1,104200.0,104190.0,0.58341796]
[1734508305873,0.1,104200.0,104190.0,0.62252377]
[1734508306182,0.07601359,104200.0,104190.0,0.62252377]
[1734508306479,0.07609965,104200.0,104190.0,0.62252377]
[1734508306675,0.07609965,104200.0,104190.0,0.61411796]
[1734508307578,0.30655443,104220.0,104200.0,0.04799]
[1734508307782,0.16290664,104220.0,104210.0,0.11869748]
[1734508308582,0.16302716,104220.0,104210.0,0.11869748]
[1734508309173,0.04810252,104220.0,104210.0,0.11869748]
[1734508312377,0.00012052,104220.0,104210.0,0.47949748]
[1734508312981,0.01143963,104230.0,104220.0,0.047981]
[1734508313281,0.01143963,104230.0,104220.0,0.18940596]
[1734508313986,0.01155754,104230.0,104220.0,0.18940596]
[1734508315580,0.01011791,104230.0,104220.0,0.18940596]
[1734508316198,0.01011791,104230.0,104220.0,0.55020596]
[1734508318076,0.01011791,104230.0,104220.0,0.58320596]
[1734508319485,0.047969,104250.0,104240.0,0.047971]
[1734508319688,0.047969,104250.0,104240.0,0.11868348]
[1734508320384,0.04803802,104250.0,104240.0,0.11868348]
[1734508321180,0.11492464,104270.0,104250.0,0.047967]
[1734508321483,0.047962,104260.0,104250.0,0.47947448]
[1734508321792,0.143162,104260.0,104250.0,0.47947448]
[1734508321971,0.66876775,104280.0,104270.0,0.047958]
[1734508322176,0.66876775,104280.0,104240.0,0.3608]
[1734508322177,0.04796,104270.0,104240.0,0.3608]
[1734508322374,0.04797,104250.0,104240.0,0.047971]
[1734508322783,0.07907,104250.0,104240.0,0.047971]
[1734508323286,0.0952,104250.0,104240.0,0.047971]
[1734508323488,0.0952,104250.0,104240.0,0.11868348]
[1734508323878,0.0952,104250.0,104240.0,0.047971]
[1734508324884,0.0957,104250.0,104240.0,0.047971]
[1734508326276,0.0957,104250.0,104240.0,0.11868348]
[1734508326784,0.0957,104250.0,104240.0,0.047971]
[1734508326976,0.0957,104250.0,104240.0,0.11868348]
[1734508327486,0.0957,104250.0,104240.0,0.047971]
[1734508328596,0.0957,104250.0,104240.0,0.408771]
[1734508331590,0.0316,104250.0,104240.0,0.408771]
[1734508331789,0.0632,104250.0,104240.0,0.408771]
[1734508332282,0.18187948,104250.0,104240.0,0.408771]
[1734508332504,0.111167,104250.0,104240.0,0.047971]
[1734508332788,0.0005,104250.0,104240.0,0.47948348]
[1734508333590,0.0005,104250.0,104240.0,0.047971]
[1734508333993,0.0005,104250.0,104240.0,0.408771]
[1734508334183,0.0005,104250.0,104240.0,0.047971]
[1734508335293,0.0005,104250.0,104240.0,0.408771]
[1734508335894,0.62088864,104260.0,104250.0,0.047967]
[1734508336488,0.62088864,104260.0,104250.0,0.11867948]
[1734508336691,0.62088864,104260.0,104250.0,0.047967]
[1734508336890,0.62138864,104260.0,104250.0,0.047967]
[1734508337794,0.57292464,104260.0,104250.0,0.047967]
[1734508338194,0.69159912,104260.0,104240.0,0.047971]
[1734508338393,0.047967,104250.0,104240.0,0.047971]
[1734508338591,0.047967,104250.0,104230.0,0.3608]
[1734508338592,0.047971,104240.0,104230.0,0.408773]
[1734508338786,0.0301,104240.0,104230.0,0.408773]
[1734508339095,0.047976,104230.0,104210.0,0.00153116]
[1734508339288,0.8012772,104220.0,104210.0,9.219e-05]
[1734508339485,0.68657288,104220.0,104210.0,9.219e-05]
[1734508339991,0.70867836,104220.0,104210.0,9.219e-05]
[1734508340794,0.66226938,104220.0,104210.0,9.219e-05]
[1734508341202,0.73051897,104220.0,104210.0,0.09448617]
[1734508341391,0.63354755,104220.0,104210.0,0.04807719]
[1734508341593,0.58713857,104220.0,104210.0,0.04807719]
[1734508341897,0.63354755,104220.0,104210.0,0.04807719]
[1734508342200,0.58713857,104220.0,104210.0,0.04807719]
[1734508343992,0.55543857,104220.0,104210.0,0.04807719]
[1734508344303,0.44078,104220.0,104210.0,0.04807719]
[1734508344598,0.55543857,104220.0,104210.0,0.04807719]
[1734508345099,0.44078,104220.0,104210.0,0.04807719]
[1734508345491,0.51148445,104220.0,104210.0,0.04807719]
[1734508345800,0.51148445,104220.0,104210.0,0.04857719]
[1734508346703,0.55543857,104220.0,104210.0,0.00059219]
[1734508346907,0.55543857,104220.0,104210.0,9.219e-05]
[1734508347091,0.44078,104220.0,104210.0,9.219e-05]
[1734508347797,0.44078,104220.0,104210.0,0.04857719]
[1734508348598,0.07998,104220.0,104210.0,0.04857719]
[1734508348796,0.07998,104220.0,104210.0,0.04807719]
[1734508349909,0.08943242,104220.0,104210.0,0.04857719]
[1734508351002,0.08943242,104220.0,104210.0,0.04807719]
[1734508351506,0.45023242,104220.0,104210.0,0.04807719]
[1734508351895,0.45023242,104220.0,104210.0,0.04857719]
[1734508352806,0.45023242,104220.0,104210.0,0.04807719]
[1734508353904,0.45023242,104220.0,104210.0,0.04857719]
[1734508354205,0.08943242,104220.0,104210.0,0.04857719]
[1734508357204,0.408778,104230.0,104220.0,0.047981]
[1734508358706,0.41824292,104230.0,104220.0,0.047981]
[1734508360399,0.047981,104220.0,104210.0,0.04807619]
[1734508360602,0.47948545,104220.0,104210.0,0.04807619]
[1734508360800,0.471981,104220.0,104210.0,0.04807619]
[1734508361005,0.471981,104220.0,104210.0,9.219e-05]
[1734508361501,0.0325,104220.0,104210.0,0.11878164]
[1734508361701,0.0325,104220.0,104210.0,0.04807719]
[1734508362105,0.44874492,104230.0,104220.0,0.047981]
[1734508363204,0.43928,104230.0,104220.0,0.047981]
[1734508366111,0.55393857,104230.0,104220.0,0.047981]
[1734508368109,0.69731897,104230.0,104220.0,0.047981]
[1734508369717,0.19313857,104230.0,104220.0,0.047981]
[1734508370214,0.33651897,104230.0,104220.0,0.047981]
[1734508370609,0.69731897,104230.0,104220.0,0.047981]
[1734508371114,0.19313857,104230.0,104220.0,0.408781]
[1734508373814,0.19313857,104230.0,104220.0,0.047981]
[1734508374114,0.2218604,104230.0,104220.0,0.047981]
[1734508374509,0.33680615,104230.0,104220.0,0.047981]
[1734508375116,0.4075106,104230.0,104220.0,0.047981]
[1734508375314,0.65336485,104230.0,104210.0,0.04807519]
[1734508375510,0.16292887,104220.0,104210.0,0.09605719]
[1734508377823,0.16292887,104220.0,104210.0,0.19006019]
[1734508379021,0.16292887,104220.0,104210.0,0.19974264]
[1734508380824,0.16292887,104220.0,104210.0,0.10573964]
[1734508383416,0.16292887,104220.0,104210.0,0.05775664]
[1734508384137,0.17258572,104220.0,104210.0,0.05775664]
[1734508386237,0.17258572,104220.0,104210.0,0.41855664]
[1734508386927,0.17258572,104220.0,104210.0,0.05775664]
[1734508387635,0.17258572,104220.0,104210.0,0.41855664]
[1734508387831,0.17258572,104220.0,104210.0,0.05775664]
[1734508388729,0.37936612,104220.0,104210.0,0.05775664]
[1734508389439,0.37936612,104220.0,104210.0,0.15175964]
[1734508389623,0.6959227,104220.0,104210.0,0.09409519]
[1734508389830,0.86799704,104220.0,104190.0,0.408789]
[1734508390033,0.047988,104200.0,104190.0,0.408789]
[1734508390338,0.23373493,104200.0,104190.0,0.408789]
[1734508390532,0.047993,104190.0,104180.0,0.01]
[1734508390836,0.047993,104190.0,104180.0,0.057997]
[1734508390837,0.23373993,104190.0,104180.0,0.057997]
[1734508391023,0.29870721,104190.0,104180.0,0.057997]
[1734508391226,0.22800276,104190.0,104180.0,0.057997]
[1734508391627,0.11296028,104190.0,104180.0,0.418797]
[1734508391828,0.22800276,104190.0,104180.0,0.057997]
[1734508392023,0.22800276,104190.0,104180.0,0.418797]
[1734508392223,0.11296028,104190.0,104180.0,0.42820662]
[1734508392827,6.728e-05,104190.0,104180.0,0.49891107]
[1734508393932,0.04806028,104190.0,104180.0,0.49891107]
[1734508394534,0.04806028,104190.0,104180.0,0.06740662]
[1734508394942,0.04806028,104190.0,104180.0,0.42820662]
[1734508395132,0.04806028,104190.0,104180.0,0.06740662]
[1734508395337,0.04806028,104190.0,104180.0,0.057997]
[1734508398535,0.04806028,104190.0,104180.0,0.01]
[1734508398733,0.14266028,104190.0,104180.0,0.01]
[1734508399939,0.14266028,104190.0,104180.0,0.0105]
[1734508401945,0.21336473,104190.0,104180.0,0.0105]
[1734508402137,0.57416473,104190.0,104180.0,0.0105]
[1734508403835,0.68920721,104190.0,104180.0,0.0105]
[1734508405951,0.61850276,104190.0,104180.0,0.0105]
[1734508406139,0.50346028,104190.0,104180.0,0.0105]
[1734508408647,0.57416473,104190.0,104180.0,0.0105]
[1734508408943,0.57416473,104190.0,104180.0,0.01]
[1734508412147,0.68920721,104190.0,104180.0,0.01]
[1734508412649,0.61850276,104190.0,104180.0,0.01]
[1734508417852,0.32840721,104190.0,104180.0,0.01]
[1734508418158,0.66493783,104190.0,104180.0,0.01]
[1734508418346,0.80831823,104190.0,104180.0,0.01]
[1734508418859,0.73971082,104190.0,104180.0,0.01]
[1734508419150,0.73971082,104190.0,104160.0,0.36090435]
[1734508419151,0.048002,104170.0,104160.0,0.36090435]
[1734508419359,0.09443707,104170.0,104160.0,0.36090435]
[1734508420045,0.2093191,104170.0,104160.0,0.36140435]
[1734508420952,0.2093191,104170.0,104160.0,0.36090435]
[1734508421155,0.16288403,104170.0,104160.0,0.40733942]
[1734508421456,0.16288403,104170.0,104160.0,0.45534542]
[1734508421957,0.16288403,104170.0,104160.0,0.09504542]
[1734508422350,0.16288403,104170.0,104160.0,0.04861035]
[1734508423059,0.16288403,104170.0,104160.0,0.04811035]
[1734508424055,0.16288403,104170.0,104160.0,0.04861035]
[1734508424950,0.16288403,104170.0,104160.0,0.04811035]
[1734508425150,0.17241938,104170.0,104160.0,0.04811035]
[1734508425852,0.17241938,104170.0,104160.0,0.00010435]
[1734508426053,0.17241938,104170.0,104160.0,0.04861035]
[1734508426958,0.17241938,104170.0,104160.0,0.04811035]
[1734508427551,0.17241938,104170.0,104160.0,0.00010435]
[1734508427952,0.17241938,104170.0,104160.0,0.00060435]
[1734508428153,0.53321938,104170.0,104160.0,0.00060435]
[1734508428558,0.74069978,104170.0,104160.0,0.00060435]
[1734508429062,0.23651938,104170.0,104160.0,0.00010435]
[1734508429264,0.66808842,104170.0,104160.0,0.00010435]
[1734508429453,0.81146882,104170.0,104160.0,0.00010435]
[1734508430064,0.81146882,104170.0,104160.0,0.00060435]
[1734508430958,0.84336882,104170.0,104160.0,0.00060435]
[1734508432063,0.84336882,104170.0,104160.0,0.00010435]
[1734508434055,0.77259978,104170.0,104160.0,0.00010435]
[1734508434362,0.84336882,104170.0,104160.0,0.00010435]
[1734508434566,0.77259978,104170.0,104160.0,0.00010435]
[1734508434753,0.84336882,104170.0,104160.0,0.00010435]
[1734508438360,0.72848679,104170.0,104160.0,0.00010435]
[1734508439462,0.65771775,104170.0,104160.0,0.00010435]
[1734508442570,0.4118731,104170.0,104160.0,0.00010435]
[1734508442765,0.2365927,104170.0,104160.0,0.00010435]
[1734508442964,0.3799731,104170.0,104160.0,0.00010435]
[1734508443656,0.3158731,104170.0,104160.0,0.04811035]
[1734508443865,0.20117436,104180.0,104170.0,0.048002]
[1734508444058,0.08621901,104180.0,104170.0,0.55032022]
[1734508444258,0.61053464,104190.0,104170.0,0.64432322]
[1734508444457,0.24973464,104190.0,104180.0,0.45521522]
[1734508444969,0.24973464,104190.0,104180.0,0.09441522]
[1734508444970,0.24923464,104190.0,104180.0,0.09441522]
[1734508445668,0.13427929,104190.0,104180.0,0.45521522]
[1734508446165,0.08678629,104190.0,104180.0,0.47952813]
[1734508446363,0.04856028,104190.0,104180.0,0.47952813]
[1734508446561,0.13477929,104190.0,104180.0,0.11872813]
[1734508446757,0.13477929,104190.0,104180.0,0.408797]
[1734508446958,0.13427929,104190.0,104180.0,0.408797]
[1734508447365,0.13427929,104190.0,104180.0,0.047997]
[1734508447769,0.13427929,104190.0,104180.0,0.408797]
[1734508448083,0.13477929,104190.0,104180.0,0.408797]
[1734508448265,0.04856028,104190.0,104180.0,0.408797]
[1734508448661,0.04856028,104190.0,104180.0,0.47952813]
[1734508449067,6.728e-05,104190.0,104180.0,0.47952813]
[1734508449368,6.728e-05,104190.0,104180.0,0.77952813]
[1734508449569,6.728e-05,104190.0,104180.0,0.87353113]
[1734508449962,0.00056728,104190.0,104180.0,0.57353113]
[1734508450158,0.00056728,104190.0,104180.0,0.47952813]
[1734508450967,6.728e-05,104190.0,104180.0,0.47952813]
[1734508451160,0.04806028,104190.0,104180.0,0.408797]
[1734508451360,0.04806028,104190.0,104180.0,0.47952813]
[1734508452070,0.04856028,104190.0,104180.0,0.47952813]
[1734508453969,0.04856028,104190.0,104180.0,0.48926781]
[1734508454765,0.00056728,104190.0,104180.0,0.48926781]
[1734508455073,6.728e-05,104190.0,104180.0,0.48926781]
[1734508455961,0.04806328,104190.0,104180.0,0.41853668]
[1734508456967,0.11879441,104190.0,104180.0,0.41853668]
[1734508457262,0.11126328,104190.0,104180.0,0.41853668]
[1734508457467,0.14446328,104190.0,104180.0,0.41853668]
[1734508458659,0.14446328,104190.0,104180.0,0.37053968]
[1734508459066,0.21519441,104190.0,104180.0,0.37053968]
[1734508459263,0.57599441,104190.0,104180.0,0.00973968]
[1734508459466,0.048,104180.0,104170.0,0.153103]
[1734508460469,0.048,104180.0,104170.0,0.122603]
[1734508464467,0.048,104180.0,104170.0,0.483403]
[1734508466777,0.71583621,104190.0,104180.0,0.047997]
[1734508468081,0.76226411,104190.0,104180.0,0.047997]
[1734508471173,0.6760451,104190.0,104180.0,0.047997]
[1734508471682,0.7621424,104190.0,104180.0,0.047997]
[1734508472184,0.7157145,104190.0,104180.0,0.047997]
[1734508472372,0.6760451,104190.0,104180.0,0.047997]
[1734508472573,0.7240421,104190.0,104170.0,0.5298259]
[1734508472781,0.08612501,104180.0,104170.0,0.5298259]
[1734508473480,0.08612501,104180.0,104170.0,0.483398]
[1734508473685,0.08612501,104180.0,104170.0,0.1690259]
[1734508474776,0.08612501,104180.0,104170.0,0.5298259]
[1734508475391,0.13412201,104180.0,104170.0,0.5298259]
[1734508477191,0.18054991,104180.0,104170.0,0.483398]
[1734508477784,0.13412201,104180.0,104170.0,0.483398]
[1734508478578,0.18054991,104180.0,104170.0,0.418798]
[1734508479585,0.22697781,104180.0,104170.0,0.418798]
[1734508479778,0.22697781,104180.0,104170.0,0.3708]
[1734508479779,0.34193316,104180.0,104170.0,0.3708]
[1734508479980,0.34193316,104180.0,104170.0,0.01]
[1734508479981,0.29550526,104180.0,104170.0,0.01]
[1734508480391,0.34193316,104180.0,104170.0,0.01]
[1734508480687,0.29550526,104180.0,104170.0,0.01]
[1734508481883,0.34193316,104180.0,104170.0,0.01]
[1734508482383,0.34201088,104180.0,104170.0,0.01]
[1734508482700,0.75998855,104180.0,104170.0,0.01]
[1734508482885,0.6450332,104180.0,104170.0,0.01]
[1734508483087,0.81710754,104180.0,104170.0,0.01]
[1734508483381,0.67372714,104180.0,104170.0,0.01]
[1734508483593,0.81741908,104180.0,104170.0,0.01]
[1734508484084,0.67372714,104180.0,104170.0,0.01]
[1734508484389,0.67372714,104180.0,104160.0,0.00010435]
[1734508484390,0.048001,104170.0,104160.0,0.00010435]
[1734508484573,0.80867128,104170.0,104160.0,0.00010435]
[1734508485085,0.80867128,104170.0,104160.0,0.00060435]
[1734508486886,0.66498107,104170.0,104160.0,0.00060435]
[1734508487188,0.80867128,104170.0,104160.0,0.00060435]
[1734508487779,0.75118179,104170.0,104160.0,0.00060435]
[1734508487988,0.66498107,104170.0,104160.0,0.00060435]
[1734508488290,0.75117787,104170.0,104160.0,0.00010435]
[1734508488475,0.66498107,104170.0,104160.0,0.00010435]
[1734508489488,0.67467475,104170.0,104160.0,0.04811035]
[1734508489683,0.61217475,104170.0,104160.0,0.04811035]
[1734508489888,0.57987475,104170.0,104160.0,0.09453825]
[1734508490093,0.57987475,104170.0,104160.0,0.04811035]
[1734508494093,0.61207475,104170.0,104160.0,0.04811035]
[1734508495588,0.61207475,104170.0,104160.0,0.00010435]
[1734508496397,0.64227475,104170.0,104160.0,0.00010435]
[1734508496796,0.68870265,104170.0,104160.0,0.00010435]
[1734508497108,0.78591584,104170.0,104160.0,0.00010435]
[1734508498486,0.64222563,104170.0,104160.0,0.00010435]
[1734508498695,0.72839613,104170.0,104160.0,0.00010435]
[1734508498898,0.65176823,104170.0,104160.0,0.04653225]
[1734508499083,0.21076723,104170.0,104160.0,0.45533825]
[1734508499589,0.09586418,104170.0,104160.0,0.45533825]
[1734508499788,0.20107355,104180.0,104160.0,0.50176615]
[1734508499990,0.0861705,104180.0,104170.0,0.4552289]
[1734508500194,0.20164083,104190.0,104170.0,0.5486289]
[1734508500392,0.16346333,104190.0,104180.0,0.0944249]
[1734508500599,0.16346333,104190.0,104180.0,0.047997]
[1734508500792,0.20163074,104190.0,104180.0,0.5016528]
[1734508500989,0.20163074,104190.0,104180.0,0.4552249]
[1734508501298,0.08622769,104190.0,104180.0,0.4552249]
[1734508502200,0.08672769,104190.0,104180.0,0.4552249]
[1734508502492,0.08672769,104190.0,104180.0,0.5016528]
[1734508502885,0.20102814,104200.0,104190.0,0.047992]
[1734508503085,0.08612509,104200.0,104190.0,0.4552199]
[1734508503400,0.16432947,104210.0,104200.0,0.047988]
[1734508503589,0.16432947,104210.0,104200.0,0.4552159]
[1734508503787,0.17397781,104210.0,104200.0,0.4552159]
[1734508504091,0.04954552,104210.0,104200.0,0.440088]
[1734508507093,0.08174552,104210.0,104200.0,0.440088]
[1734508507798,0.00155952,104210.0,104200.0,0.51080046]
[1734508507991,0.00155952,104210.0,104200.0,0.54160046]
[1734508508599,0.00155952,104210.0,104200.0,0.470888]
[1734508511204,0.04954252,104210.0,104200.0,0.470888]
[1734508511902,0.08204252,104210.0,104200.0,0.470888]
[1734508512803,0.08204252,104210.0,104200.0,0.440088]
[1734508514201,0.03405952,104210.0,104200.0,0.440088]
[1734508514903,0.11474252,104210.0,104200.0,0.440088]
[1734508515093,0.11524252,104210.0,104200.0,0.440088]
[1734508516103,0.11474252,104210.0,104200.0,0.440088]
[1734508517001,0.11474252,104210.0,104200.0,0.079288]
[1734508517312,0.11524252,104210.0,104200.0,0.079288]
[1734508518108,0.11474252,104210.0,104200.0,0.079288]
[1734508518499,0.11474252,104210.0,104200.0,0.440088]
[1734508519103,0.11524252,104210.0,104200.0,0.440088]
[1734508519498,0.11524252,104210.0,104200.0,0.408788]
[1734508521997,0.047988,104200.0,104190.0,0.408792]
[1734508523599,0.06675952,104210.0,104190.0,0.47950446]
[1734508523809,0.11474552,104210.0,104190.0,0.47950446]
[1734508524909,0.06675952,104210.0,104190.0,0.11870446]
[1734508525208,0.047988,104200.0,104190.0,0.408792]
[1734508526010,0.047988,104200.0,104190.0,0.45520355]